[Event "Late-Titled-Tuesday-Blitz-October-10-2023"]
[Site "Chess.com"]
[Date "2023.10.10"]
[Round "3"]
[White "Ramosha"]
[Black "ItalianMachine"]
[Result "1-0"]
[WhiteElo "2618"]
[BlackElo "2414"]
[TimeControl "180+1"]
[EndTime "14:26:59 PDT"]
[Termination "Ramosha won on time"]

1. e4 {[%clk 0:03:00.9]} 1... e5 {[%clk 0:02:56.7]} 2. Nf3 {[%clk 0:03:00.5]}
2... Nc6 {[%clk 0:02:56.9]} 3. Nc3 {[%clk 0:02:59.3]} 3... Nf6 {[%clk
0:02:56.3]} 4. h3 {[%clk 0:02:59.8]} 4... Bb4 {[%clk 0:02:52]} 5. Bc4 {[%clk
0:02:59]} 5... O-O {[%clk 0:02:49.8]} 6. O-O {[%clk 0:02:58.8]} 6... Bxc3 {[%clk
0:02:48.1]} 7. dxc3 {[%clk 0:02:59.7]} 7... Nxe4 {[%clk 0:02:48]} 8. Re1 {[%clk
0:02:54.6]} 8... Nf6 {[%clk 0:02:45.9]} 9. Nxe5 {[%clk 0:02:52.8]} 9... Nxe5
{[%clk 0:02:46.3]} 10. Rxe5 {[%clk 0:02:53.7]} 10... d6 {[%clk 0:02:46.9]} 11.
Re1 {[%clk 0:02:54]} 11... d5 {[%clk 0:02:47.3]} 12. Bd3 {[%clk 0:02:53.9]}
12... h6 {[%clk 0:02:47.2]} 13. Qf3 {[%clk 0:02:52.7]} 13... c5 {[%clk
0:02:41.3]} 14. b3 {[%clk 0:02:50.7]} 14... b6 {[%clk 0:02:41.1]} 15. c4 {[%clk
0:02:47.5]} 15... Be6 {[%clk 0:02:34.8]} 16. cxd5 {[%clk 0:02:45]} 16... Qxd5
{[%clk 0:02:30]} 17. Qg3 {[%clk 0:02:39.5]} 17... Kh8 {[%clk 0:02:20.9]} 18. Bb2
{[%clk 0:02:38.4]} 18... Nh5 {[%clk 0:02:18.4]} 19. Qe3 {[%clk 0:02:32.8]} 19...
Qg5 {[%clk 0:02:16.9]} 20. Qf3 {[%clk 0:02:17.2]} 20... Nf4 {[%clk 0:01:57.6]}
21. Bc1 {[%clk 0:02:02.3]} 21... Nxh3+ {[%clk 0:01:25.5]} 22. Qxh3 {[%clk
0:02:00.2]} 22... Qf6 {[%clk 0:01:25.7]} 23. Qe3 {[%clk 0:01:45.4]} 23... Qxa1
{[%clk 0:01:23]} 24. Qe4 {[%clk 0:01:45.7]} 24... g6 {[%clk 0:01:16.9]} 25. Bxh6
{[%clk 0:01:45.2]} 25... Qc3 {[%clk 0:01:17]} 26. Re3 {[%clk 0:01:23.2]} 26...
Qd4 {[%clk 0:01:10.5]} 27. Bxf8 {[%clk 0:01:15]} 27... Qxe4 {[%clk 0:01:10.3]}
28. Bxe4 {[%clk 0:01:14.7]} 28... Rxf8 {[%clk 0:01:10.5]} 29. Bxg6 {[%clk
0:01:14.5]} 29... Rd8 {[%clk 0:01:06.6]} 30. Bd3 {[%clk 0:01:14.1]} 30... Rd4
{[%clk 0:01:00.4]} 31. Re4 {[%clk 0:01:09.4]} 31... Rd6 {[%clk 0:00:51.3]} 32.
f3 {[%clk 0:01:03.3]} 32... Kg7 {[%clk 0:00:51.3]} 33. Kf2 {[%clk 0:01:03.7]}
33... Bf5 {[%clk 0:00:39.9]} 34. Re3 {[%clk 0:01:03.7]} 34... Be6 {[%clk
0:00:39.3]} 35. g4 {[%clk 0:01:00.6]} 35... Kf6 {[%clk 0:00:37.3]} 36. Re4
{[%clk 0:00:59.6]} 36... Kg5 {[%clk 0:00:35.9]} 37. Kg3 {[%clk 0:00:58.9]} 37...
Kf6 {[%clk 0:00:31]} 38. f4 {[%clk 0:00:57.7]} 38... Kg7 {[%clk 0:00:16.5]} 39.
f5 {[%clk 0:00:56.7]} 39... Bd7 {[%clk 0:00:16.7]} 40. Kf4 {[%clk 0:00:56]}
40... Bc6 {[%clk 0:00:15.6]} 41. Re7 {[%clk 0:00:56]} 41... Rd4+ {[%clk
0:00:16]} 42. Kg5 {[%clk 0:00:55.9]} 42... a5 {[%clk 0:00:10.5]} 43. f6+ {[%clk
0:00:55.3]} 43... Kf8 {[%clk 0:00:11.3]} 44. Bf5 {[%clk 0:00:53.5]} 44... Be8
{[%clk 0:00:06.1]} 45. Rb7 {[%clk 0:00:48.9]} 45... Rd6 {[%clk 0:00:05.9]} 46.
Rb8 {[%clk 0:00:48.8]} 46... b5 {[%clk 0:00:04.4]} 47. Bd3 {[%clk 0:00:46.9]}
47... a4 {[%clk 0:00:02.1]} 48. Bxb5 {[%clk 0:00:46.1]} 1-0

[Event "Late-Titled-Tuesday-Blitz-October-10-2023"]
[Site "Chess.com"]
[Date "2023.10.10"]
[Round "3"]
[White "luizzy"]
[Black "Zampronha1971"]
[Result "1-0"]
[WhiteElo "2553"]
[BlackElo "2282"]
[TimeControl "180+1"]
[EndTime "14:27:01 PDT"]
[Termination "luizzy won by resignation"]

1. b3 {[%clk 0:03:00.9]} 1... e5 {[%clk 0:02:59.1]} 2. Bb2 {[%clk 0:03:01.3]}
2... Nc6 {[%clk 0:02:59.6]} 3. e3 {[%clk 0:03:01.8]} 3... d5 {[%clk 0:02:59.5]}
4. Bb5 {[%clk 0:03:02.1]} 4... Bd6 {[%clk 0:02:59.3]} 5. f4 {[%clk 0:03:02]}
5... Qh4+ {[%clk 0:02:58.5]} 6. g3 {[%clk 0:03:02.2]} 6... Qe7 {[%clk
0:02:59.1]} 7. Nf3 {[%clk 0:03:02.7]} 7... f6 {[%clk 0:02:58.6]} 8. O-O {[%clk
0:03:01.8]} 8... Bg4 {[%clk 0:02:48.7]} 9. Be2 {[%clk 0:02:39.7]} 9... e4 {[%clk
0:02:42.3]} 10. Nh4 {[%clk 0:02:32.5]} 10... Bxe2 {[%clk 0:02:43.2]} 11. Qxe2
{[%clk 0:02:32.9]} 11... g6 {[%clk 0:02:31.4]} 12. c4 {[%clk 0:02:30.6]} 12...
dxc4 {[%clk 0:02:13.7]} 13. Qxc4 {[%clk 0:02:26.3]} 13... O-O-O {[%clk
0:02:13.8]} 14. Nc3 {[%clk 0:02:24.3]} 14... Re8 {[%clk 0:02:12.2]} 15. Nd5
{[%clk 0:02:14.6]} 15... Qd7 {[%clk 0:02:05.3]} 16. Bxf6 {[%clk 0:02:03.9]}
16... Nxf6 {[%clk 0:01:58.1]} 17. Nxf6 {[%clk 0:02:04]} 17... Qe7 {[%clk
0:01:50.6]} 18. Nxe8 {[%clk 0:02:03.1]} 18... Rxe8 {[%clk 0:01:51.5]} 19. Rac1
{[%clk 0:01:59.6]} 19... Nb4 {[%clk 0:01:50.4]} 20. f5 {[%clk 0:01:36.9]} 20...
g5 {[%clk 0:01:27.8]} 21. f6 {[%clk 0:01:34.4]} 21... Qd7 {[%clk 0:01:26]} 22.
Nf5 {[%clk 0:01:30.8]} 22... Nd3 {[%clk 0:01:24.7]} 23. f7 {[%clk 0:01:14.6]}
23... Rf8 {[%clk 0:01:24]} 24. Nxd6+ {[%clk 0:01:14.5]} 24... Qxd6 {[%clk
0:01:24.3]} 25. Rc3 {[%clk 0:01:03.2]} 25... Ne5 {[%clk 0:01:24]} 26. Qxe4
{[%clk 0:01:02]} 26... Rxf7 {[%clk 0:01:24.1]} 27. Rxf7 {[%clk 0:00:59]} 27...
Nxf7 {[%clk 0:01:25]} 28. Qf5+ {[%clk 0:00:58.6]} 28... Qd7 {[%clk 0:01:22.2]}
29. Qxd7+ {[%clk 0:00:48.7]} 29... Kxd7 {[%clk 0:01:23.1]} 30. d4 {[%clk
0:00:45.1]} 30... Nd6 {[%clk 0:01:21.6]} 31. Rc5 {[%clk 0:00:40.5]} 31... h6
{[%clk 0:01:20.8]} 32. Kg2 {[%clk 0:00:34.5]} 32... c6 {[%clk 0:01:21.3]} 33. h4
{[%clk 0:00:33.5]} 33... b6 {[%clk 0:01:14]} 34. Re5 {[%clk 0:00:27.4]} 34...
Nf7 {[%clk 0:01:13.2]} 35. Rf5 {[%clk 0:00:27.7]} 35... Ke6 {[%clk 0:01:13.7]}
36. Rf1 {[%clk 0:00:23.7]} 36... g4 {[%clk 0:01:12.3]} 37. e4 {[%clk 0:00:21.8]}
37... c5 {[%clk 0:01:10.1]} 38. d5+ {[%clk 0:00:21.2]} 38... Ke7 {[%clk
0:01:10.6]} 39. Rf4 {[%clk 0:00:20.3]} 39... b5 {[%clk 0:01:06.4]} 40. Rxg4
{[%clk 0:00:20.5]} 40... c4 {[%clk 0:01:06.9]} 41. bxc4 {[%clk 0:00:19.7]} 41...
bxc4 {[%clk 0:01:07.6]} 42. Rf4 {[%clk 0:00:20]} 42... Ne5 {[%clk 0:01:05.9]}
43. Rf2 {[%clk 0:00:20.3]} 43... Kd6 {[%clk 0:01:06.2]} 44. Rc2 {[%clk
0:00:20.5]} 44... h5 {[%clk 0:01:05.9]} 45. Kf2 {[%clk 0:00:19.6]} 45... Kc5
{[%clk 0:01:05.1]} 46. Ke3 {[%clk 0:00:20.2]} 46... Kb4 {[%clk 0:01:05.5]} 47.
d6 {[%clk 0:00:20.3]} 47... Kc5 {[%clk 0:01:04]} 48. Kf4 {[%clk 0:00:19.1]}
48... Kd4 {[%clk 0:01:02.5]} 49. Rd2+ {[%clk 0:00:17.9]} 49... Kc3 {[%clk
0:01:02.4]} 50. Rd5 {[%clk 0:00:16.3]} 50... Nd3+ {[%clk 0:01:01.3]} 51. Kg5
{[%clk 0:00:15.9]} 51... Nf2 {[%clk 0:00:54.9]} 52. Kf5 {[%clk 0:00:12.7]} 1-0

[Event "Late-Titled-Tuesday-Blitz-October-10-2023"]
[Site "Chess.com"]
[Date "2023.10.10"]
[Round "3"]
[White "RCone"]
[Black "talaicito"]
[Result "0-1"]
[WhiteElo "2444"]
[BlackElo "2230"]
[TimeControl "180+1"]
[EndTime "14:27:01 PDT"]
[Termination "talaicito won on time"]

1. e4 {[%clk 0:03:00.9]} 1... c5 {[%clk 0:02:58]} 2. Nc3 {[%clk 0:03:01.5]} 2...
Nc6 {[%clk 0:02:53.5]} 3. Bb5 {[%clk 0:03:00.9]} 3... Nd4 {[%clk 0:02:53.4]} 4.
Nf3 {[%clk 0:03:01.3]} 4... a6 {[%clk 0:02:48]} 5. Bd3 {[%clk 0:03:00.1]} 5...
b5 {[%clk 0:02:41.3]} 6. Nxd4 {[%clk 0:02:59.3]} 6... cxd4 {[%clk 0:02:41.3]} 7.
Ne2 {[%clk 0:02:57.9]} 7... e5 {[%clk 0:02:40.7]} 8. a4 {[%clk 0:02:54.1]} 8...
b4 {[%clk 0:02:35.8]} 9. Bc4 {[%clk 0:02:36.6]} 9... Nf6 {[%clk 0:02:33.3]} 10.
d3 {[%clk 0:02:36.9]} 10... d5 {[%clk 0:02:27.6]} 11. exd5 {[%clk 0:02:37.5]}
11... Nxd5 {[%clk 0:02:27.7]} 12. O-O {[%clk 0:02:37.2]} 12... Be7 {[%clk
0:02:21]} 13. f4 {[%clk 0:02:36.7]} 13... exf4 {[%clk 0:02:03.3]} 14. Nxf4
{[%clk 0:02:37.6]} 14... Nxf4 {[%clk 0:01:45.8]} 15. Rxf4 {[%clk 0:02:27.6]}
15... O-O {[%clk 0:01:44.9]} 16. Qf3 {[%clk 0:02:28.1]} 16... Be6 {[%clk
0:01:41.5]} 17. Bxe6 {[%clk 0:02:25.3]} 17... fxe6 {[%clk 0:01:41.8]} 18. Rxf8+
{[%clk 0:02:15]} 18... Qxf8 {[%clk 0:01:32.1]} 19. Qe4 {[%clk 0:02:15.6]} 19...
Kh8 {[%clk 0:01:15.3]} 20. Bf4 {[%clk 0:01:48]} 20... Rc8 {[%clk 0:01:12.8]} 21.
Rf1 {[%clk 0:01:44.3]} 21... Bf6 {[%clk 0:00:58.4]} 22. Be5 {[%clk 0:01:38.1]}
22... Qe7 {[%clk 0:00:45.8]} 23. Qxd4 {[%clk 0:01:32]} 23... Qc5 {[%clk
0:00:26.8]} 24. c3 {[%clk 0:00:44]} 24... Qxe5 {[%clk 0:00:19.2]} 25. Qxe5
{[%clk 0:00:06.6]} 25... Bxe5 {[%clk 0:00:20.1]} 26. d4 {[%clk 0:00:07]} 26...
bxc3 {[%clk 0:00:18.4]} 27. bxc3 {[%clk 0:00:05.2]} 27... Bf6 {[%clk 0:00:18.1]}
28. Rf3 {[%clk 0:00:05.5]} 28... Kg8 {[%clk 0:00:16.9]} 29. Kf2 {[%clk
0:00:04.4]} 29... Rc4 {[%clk 0:00:16.5]} 30. a5 {[%clk 0:00:02.4]} 30... Ra4
{[%clk 0:00:16.7]} 31. Ke2 {[%clk 0:00:03.1]} 31... Rxa5 {[%clk 0:00:15.7]} 32.
Kd3 {[%clk 0:00:04]} 32... Ra3 {[%clk 0:00:15.3]} 33. Rf2 {[%clk 0:00:03.2]}
33... a5 {[%clk 0:00:15]} 34. Rb2 {[%clk 0:00:02.9]} 34... a4 {[%clk 0:00:14.9]}
35. Rb7 {[%clk 0:00:03.5]} 35... Rb3 {[%clk 0:00:14]} 36. Ra7 {[%clk 0:00:03.5]}
36... Rb2 {[%clk 0:00:12.1]} 0-1

[Event "Late-Titled-Tuesday-Blitz-October-10-2023"]
[Site "Chess.com"]
[Date "2023.10.10"]
[Round "3"]
[White "rochaaaaaaaaaa"]
[Black "protectiago"]
[Result "1-0"]
[WhiteElo "2398"]
[BlackElo "2080"]
[TimeControl "180+1"]
[EndTime "14:27:02 PDT"]
[Termination "rochaaaaaaaaaa won on time"]

1. e4 {[%clk 0:03:00.9]} 1... e5 {[%clk 0:02:57.1]} 2. Nf3 {[%clk 0:03:00.2]}
2... Nc6 {[%clk 0:02:57.3]} 3. Bc4 {[%clk 0:03:00.4]} 3... Bc5 {[%clk
0:02:54.9]} 4. O-O {[%clk 0:02:59.7]} 4... Nf6 {[%clk 0:02:54.7]} 5. d3 {[%clk
0:02:59.3]} 5... h6 {[%clk 0:02:52.6]} 6. c3 {[%clk 0:02:54]} 6... d6 {[%clk
0:02:51.3]} 7. Re1 {[%clk 0:02:51.4]} 7... Bb6 {[%clk 0:02:47.8]} 8. Nbd2 {[%clk
0:02:47.6]} 8... O-O {[%clk 0:02:47]} 9. h3 {[%clk 0:02:46.7]} 9... Ne7 {[%clk
0:02:40.9]} 10. a4 {[%clk 0:02:40.3]} 10... a6 {[%clk 0:02:30.2]} 11. Nf1 {[%clk
0:02:24]} 11... Ng6 {[%clk 0:02:29.9]} 12. Ng3 {[%clk 0:02:19.3]} 12... c6
{[%clk 0:02:17.8]} 13. Bb3 {[%clk 0:02:16.1]} 13... Be6 {[%clk 0:02:06.1]} 14.
d4 {[%clk 0:02:11]} 14... Bxb3 {[%clk 0:01:50.9]} 15. Qxb3 {[%clk 0:02:10.8]}
15... Re8 {[%clk 0:01:22.9]} 16. Be3 {[%clk 0:02:06.4]} 16... exd4 {[%clk
0:01:09.5]} 17. Bxd4 {[%clk 0:02:05.6]} 17... Bxd4 {[%clk 0:01:09.4]} 18. cxd4
{[%clk 0:02:02.7]} 18... b5 {[%clk 0:00:21.2]} 19. axb5 {[%clk 0:01:57.6]} 19...
axb5 {[%clk 0:00:18.9]} 20. Rxa8 {[%clk 0:01:53]} 20... Qxa8 {[%clk 0:00:18.9]}
21. Qb4 {[%clk 0:01:53.1]} 21... c5 {[%clk 0:00:19]} 22. dxc5 {[%clk 0:01:37.9]}
22... dxc5 {[%clk 0:00:18.9]} 23. Qxc5 {[%clk 0:01:32]} 23... Nxe4 {[%clk
0:00:18.1]} 24. Nxe4 {[%clk 0:01:31.9]} 24... Rxe4 {[%clk 0:00:16.9]} 25. Rxe4
{[%clk 0:01:32]} 25... Qxe4 {[%clk 0:00:16.8]} 26. Qxb5 {[%clk 0:01:22.5]} 26...
Nf4 {[%clk 0:00:12.5]} 27. Qe5 {[%clk 0:01:02.2]} 27... Qb1+ {[%clk 0:00:11.9]}
28. Kh2 {[%clk 0:01:01.8]} 28... Nd3 {[%clk 0:00:12.1]} 29. Qe8+ {[%clk
0:00:56.9]} 29... Kh7 {[%clk 0:00:12.2]} 30. Qe4+ {[%clk 0:00:57]} 30... Kg8
{[%clk 0:00:11.2]} 31. Ne5 {[%clk 0:00:55.8]} 31... Qh1+ {[%clk 0:00:08.8]} 32.
Kg3 {[%clk 0:00:43]} 32... Nxe5 {[%clk 0:00:08.5]} 33. Qxe5 {[%clk 0:00:41.2]}
33... Qb1 {[%clk 0:00:07.6]} 34. Qc3 {[%clk 0:00:27.4]} 34... Kf8 {[%clk
0:00:07.1]} 35. b4 {[%clk 0:00:25.5]} 35... g6 {[%clk 0:00:05.7]} 36. Qc5+
{[%clk 0:00:20.5]} 36... Ke8 {[%clk 0:00:04.9]} 37. b5 {[%clk 0:00:20]} 37...
Qd3+ {[%clk 0:00:04.7]} 38. Kh2 {[%clk 0:00:19.7]} 38... Qd2 {[%clk 0:00:02.2]}
39. g3 {[%clk 0:00:19.2]} 1-0

[Event "Late-Titled-Tuesday-Blitz-October-10-2023"]
[Site "Chess.com"]
[Date "2023.10.10"]
[Round "3"]
[White "WDCH"]
[Black "Grischuk"]
[Result "0-1"]
[WhiteElo "2722"]
[BlackElo "2983"]
[TimeControl "180+1"]
[EndTime "14:27:06 PDT"]
[Termination "Grischuk won by resignation"]

1. Nf3 {[%clk 0:03:00.9]} 1... d5 {[%clk 0:02:55.9]} 2. c4 {[%clk 0:02:59.8]}
2... d4 {[%clk 0:02:54]} 3. d3 {[%clk 0:02:59.3]} 3... Nc6 {[%clk 0:02:48.8]} 4.
g3 {[%clk 0:02:59]} 4... e5 {[%clk 0:02:48.7]} 5. Bg2 {[%clk 0:02:59.5]} 5...
Bb4+ {[%clk 0:02:47.9]} 6. Nfd2 {[%clk 0:02:58.1]} 6... a5 {[%clk 0:02:47.3]} 7.
O-O {[%clk 0:02:58]} 7... Nf6 {[%clk 0:02:47]} 8. Na3 {[%clk 0:02:58.3]} 8...
O-O {[%clk 0:02:39.8]} 9. Nc2 {[%clk 0:02:58.1]} 9... Bd6 {[%clk 0:02:35.5]} 10.
e3 {[%clk 0:02:51.6]} 10... dxe3 {[%clk 0:02:26.9]} 11. Nxe3 {[%clk 0:02:36.6]}
11... Re8 {[%clk 0:02:26.1]} 12. Ne4 {[%clk 0:02:34]} 12... Nd4 {[%clk
0:02:08.6]} 13. Nxf6+ {[%clk 0:01:53.5]} 13... Qxf6 {[%clk 0:02:09.5]} 14. Nd5
{[%clk 0:01:53.9]} 14... Qd8 {[%clk 0:02:05.2]} 15. Be3 {[%clk 0:01:54]} 15...
c6 {[%clk 0:02:03.6]} 16. Nc3 {[%clk 0:01:54.3]} 16... Nf5 {[%clk 0:02:03]} 17.
Bd2 {[%clk 0:01:44.8]} 17... Bc5 {[%clk 0:02:00.6]} 18. Ne4 {[%clk 0:01:42.9]}
18... Bd4 {[%clk 0:01:58.5]} 19. Rb1 {[%clk 0:01:40.7]} 19... h6 {[%clk
0:01:56]} 20. Qh5 {[%clk 0:01:38.3]} 20... g6 {[%clk 0:01:35.9]} 21. Qd1 {[%clk
0:01:31.4]} 21... Kg7 {[%clk 0:01:34.9]} 22. Kh1 {[%clk 0:01:31.7]} 22... Nd6
{[%clk 0:01:26.8]} 23. f4 {[%clk 0:01:30]} 23... Nxe4 {[%clk 0:01:26.6]} 24.
dxe4 {[%clk 0:01:23.1]} 24... exf4 {[%clk 0:01:11.4]} 25. Bxf4 {[%clk
0:01:18.5]} 25... Be6 {[%clk 0:01:00]} 26. Qc2 {[%clk 0:01:05.2]} 26... Qb6
{[%clk 0:00:50.4]} 27. Rfc1 {[%clk 0:00:51.5]} 27... Qc5 {[%clk 0:00:48]} 28. b3
{[%clk 0:00:46.2]} 28... Red8 {[%clk 0:00:42.3]} 29. Rd1 {[%clk 0:00:46.3]}
29... Be5 {[%clk 0:00:38.6]} 30. Rf1 {[%clk 0:00:39.7]} 30... Rd7 {[%clk
0:00:34.7]} 31. Rbe1 {[%clk 0:00:37.1]} 31... Rad8 {[%clk 0:00:32.6]} 32. Re2
{[%clk 0:00:37.6]} 32... g5 {[%clk 0:00:21.5]} 33. Be3 {[%clk 0:00:37.4]} 33...
Qb4 {[%clk 0:00:20]} 34. Bc1 {[%clk 0:00:36.1]} 34... b5 {[%clk 0:00:12.8]} 35.
a3 {[%clk 0:00:36.3]} 35... Qc5 {[%clk 0:00:12.3]} 36. cxb5 {[%clk 0:00:35]}
36... Qxc2 {[%clk 0:00:12.4]} 37. Rxc2 {[%clk 0:00:35.7]} 37... cxb5 {[%clk
0:00:12.6]} 38. b4 {[%clk 0:00:29.5]} 38... axb4 {[%clk 0:00:10.9]} 39. axb4
{[%clk 0:00:29.3]} 39... Bc4 {[%clk 0:00:10]} 40. Re1 {[%clk 0:00:19.6]} 40...
Rd1 {[%clk 0:00:10.1]} 0-1

[Event "Late-Titled-Tuesday-Blitz-October-10-2023"]
[Site "Chess.com"]
[Date "2023.10.10"]
[Round "3"]
[White "rezamahdavi2008"]
[Black "angryspacevoid"]
[Result "1-0"]
[WhiteElo "2872"]
[BlackElo "2544"]
[TimeControl "180+1"]
[EndTime "14:27:06 PDT"]
[Termination "rezamahdavi2008 won by resignation"]

1. e4 {[%clk 0:03:00.9]} 1... c5 {[%clk 0:02:54.7]} 2. Nf3 {[%clk 0:03:01]} 2...
Nf6 {[%clk 0:02:55]} 3. e5 {[%clk 0:02:53.6]} 3... Nd5 {[%clk 0:02:54.2]} 4. Nc3
{[%clk 0:02:54.2]} 4... e6 {[%clk 0:02:53.9]} 5. Ne4 {[%clk 0:02:50.2]} 5... Nc6
{[%clk 0:02:51.7]} 6. c4 {[%clk 0:02:48]} 6... f5 {[%clk 0:02:47.3]} 7. cxd5
{[%clk 0:02:48.4]} 7... fxe4 {[%clk 0:02:47.6]} 8. dxc6 {[%clk 0:02:48.4]} 8...
exf3 {[%clk 0:02:48.2]} 9. Qxf3 {[%clk 0:02:48.3]} 9... dxc6 {[%clk 0:02:42.3]}
10. Be2 {[%clk 0:02:48.7]} 10... g6 {[%clk 0:02:37]} 11. h4 {[%clk 0:02:28.1]}
11... Qd5 {[%clk 0:02:23.1]} 12. Qg3 {[%clk 0:02:27.5]} 12... Bg7 {[%clk
0:02:22.3]} 13. f4 {[%clk 0:02:25.7]} 13... Bd7 {[%clk 0:02:16.5]} 14. h5 {[%clk
0:02:19]} 14... O-O-O {[%clk 0:02:14.7]} 15. h6 {[%clk 0:02:19.5]} 15... Bf8
{[%clk 0:02:13.7]} 16. d3 {[%clk 0:02:19.9]} 16... c4 {[%clk 0:02:08]} 17. dxc4
{[%clk 0:02:20.2]} 17... Bb4+ {[%clk 0:02:06.6]} 18. Kf1 {[%clk 0:02:20.7]}
18... Qd4 {[%clk 0:02:01.8]} 19. Qe3 {[%clk 0:02:19.1]} 19... Bc5 {[%clk
0:01:50.4]} 20. Qxd4 {[%clk 0:02:19.3]} 20... Bxd4 {[%clk 0:01:51.3]} 21. Rb1
{[%clk 0:02:20.2]} 21... Rhf8 {[%clk 0:01:50.8]} 22. Bf3 {[%clk 0:02:20.2]}
22... Be8 {[%clk 0:01:40.6]} 23. Ke2 {[%clk 0:02:20.3]} 23... g5 {[%clk
0:01:34.7]} 24. Be4 {[%clk 0:02:06.2]} 24... gxf4 {[%clk 0:01:31.2]} 25. Bxh7
{[%clk 0:02:06.6]} 25... Bxe5 {[%clk 0:01:26.3]} 26. Bd2 {[%clk 0:02:05.3]}
26... c5 {[%clk 0:00:59]} 27. Be4 {[%clk 0:02:01.7]} 27... Rd4 {[%clk
0:00:56.2]} 28. Bf3 {[%clk 0:02:02.3]} 28... Bg6 {[%clk 0:00:54]} 29. Rbd1
{[%clk 0:01:56.8]} 29... Bd3+ {[%clk 0:00:48]} 30. Kf2 {[%clk 0:01:53.9]} 30...
Bc2 {[%clk 0:00:47.9]} 31. Bc3 {[%clk 0:01:39.3]} 31... Bxd1 {[%clk 0:00:47.9]}
32. Bxd1 {[%clk 0:01:40.2]} 32... Re4 {[%clk 0:00:39.1]} 33. Bc2 {[%clk
0:01:34.1]} 33... Re3 {[%clk 0:00:34.7]} 34. Bxe5 {[%clk 0:01:31.8]} 34... Rxe5
{[%clk 0:00:35.6]} 35. h7 {[%clk 0:01:32.7]} 35... Rh8 {[%clk 0:00:34.7]} 36.
Rh6 {[%clk 0:01:33.4]} 36... Kd7 {[%clk 0:00:27.1]} 37. Rg6 {[%clk 0:01:33.8]}
37... Rxh7 {[%clk 0:00:26.4]} 38. Rg8 {[%clk 0:01:32.1]} 38... Rf7 {[%clk
0:00:25.1]} 39. Bd1 {[%clk 0:01:28.9]} 39... Kc6 {[%clk 0:00:23]} 40. Bf3+
{[%clk 0:01:29.2]} 40... Kb6 {[%clk 0:00:23.5]} 41. Rd8 {[%clk 0:01:29.7]} 41...
Rg5 {[%clk 0:00:22.8]} 42. Rd6+ {[%clk 0:01:30]} 42... Kc7 {[%clk 0:00:22.1]}
43. Rxe6 {[%clk 0:01:30.2]} 43... Rd7 {[%clk 0:00:22.3]} 44. Re2 {[%clk
0:01:24.1]} 44... Rgg7 {[%clk 0:00:21.1]} 45. a3 {[%clk 0:01:23.9]} 45... Rge7
{[%clk 0:00:21.7]} 46. Rc2 {[%clk 0:01:23.9]} 46... Re3 {[%clk 0:00:21.8]} 47.
Bd5 {[%clk 0:01:23.4]} 47... Rg7 {[%clk 0:00:21.2]} 48. b4 {[%clk 0:01:20.7]}
48... b6 {[%clk 0:00:20.7]} 49. bxc5 {[%clk 0:01:20.9]} 49... bxc5 {[%clk
0:00:21.6]} 50. Rb2 {[%clk 0:01:21.6]} 50... Kd6 {[%clk 0:00:21.6]} 51. a4
{[%clk 0:01:20]} 51... Ra3 {[%clk 0:00:21.8]} 52. Bf3 {[%clk 0:01:16.6]} 52...
Rxa4 {[%clk 0:00:21.7]} 53. Rd2+ {[%clk 0:01:17.3]} 53... Kc7 {[%clk 0:00:21.4]}
54. Bd5 {[%clk 0:01:17]} 54... Rd7 {[%clk 0:00:20.1]} 55. Rb2 {[%clk 0:01:15.7]}
55... Rb4 {[%clk 0:00:20.6]} 56. Ra2 {[%clk 0:01:15.7]} 56... Kd6 {[%clk
0:00:20.8]} 57. Kf3 {[%clk 0:01:14.5]} 57... Ke5 {[%clk 0:00:20.8]} 58. Re2+
{[%clk 0:01:09.7]} 58... Kf6 {[%clk 0:00:21.2]} 59. Re6+ {[%clk 0:01:08]} 59...
Kf5 {[%clk 0:00:21.4]} 60. Rc6 {[%clk 0:01:06.7]} 60... Rxd5 {[%clk 0:00:15.9]}
61. cxd5 {[%clk 0:01:06.6]} 61... Ke5 {[%clk 0:00:16.6]} 62. Rxc5 {[%clk
0:01:05.7]} 62... Kd6 {[%clk 0:00:15]} 63. Ra5 {[%clk 0:01:06.2]} 63... Rd4
{[%clk 0:00:14.5]} 64. Rxa7 {[%clk 0:01:03.4]} 64... Kxd5 {[%clk 0:00:15]} 65.
Rd7+ {[%clk 0:01:03.3]} 1-0

[Event "Late-Titled-Tuesday-Blitz-October-10-2023"]
[Site "Chess.com"]
[Date "2023.10.10"]
[Round "3"]
[White "JG-17"]
[Black "chosenpr"]
[Result "0-1"]
[WhiteElo "2478"]
[BlackElo "2262"]
[TimeControl "180+1"]
[EndTime "14:27:06 PDT"]
[Termination "chosenpr won by checkmate"]

1. e4 {[%clk 0:02:58.7]} 1... e5 {[%clk 0:02:58.3]} 2. Nc3 {[%clk 0:02:58.3]}
2... Bc5 {[%clk 0:02:49.3]} 3. Bc4 {[%clk 0:02:57.6]} 3... Nc6 {[%clk
0:02:48.5]} 4. d3 {[%clk 0:02:57.7]} 4... Nf6 {[%clk 0:02:48.1]} 5. f4 {[%clk
0:02:56.4]} 5... d5 {[%clk 0:02:36.3]} 6. Nxd5 {[%clk 0:02:26.8]} 6... Bxg1
{[%clk 0:02:21.4]} 7. Rxg1 {[%clk 0:02:22.2]} 7... Nxd5 {[%clk 0:02:12.7]} 8.
Bxd5 {[%clk 0:02:17.3]} 8... Qh4+ {[%clk 0:02:08.5]} 9. Kf1 {[%clk 0:02:14.2]}
9... Bg4 {[%clk 0:01:56.9]} 10. Qe1 {[%clk 0:02:11.1]} 10... Qxh2 {[%clk
0:01:55.1]} 11. Bxc6+ {[%clk 0:01:53.6]} 11... bxc6 {[%clk 0:01:53.6]} 12. Qf2
{[%clk 0:01:51.2]} 12... O-O {[%clk 0:01:47.9]} 13. f5 {[%clk 0:01:44.1]} 13...
Qh5 {[%clk 0:01:23.7]} 14. Bd2 {[%clk 0:01:37.8]} 14... Rab8 {[%clk 0:01:19.8]}
15. Bc3 {[%clk 0:01:37.9]} 15... f6 {[%clk 0:01:19]} 16. Qxa7 {[%clk 0:01:37.6]}
16... g6 {[%clk 0:01:13.6]} 17. Kf2 {[%clk 0:01:22.1]} 17... gxf5 {[%clk
0:01:10.1]} 18. Rh1 {[%clk 0:01:18.4]} 18... Qg5 {[%clk 0:01:07.1]} 19. Qe3
{[%clk 0:01:18.3]} 19... f4 {[%clk 0:01:04]} 20. Qd2 {[%clk 0:01:16.9]} 20...
Bh5 {[%clk 0:00:49.8]} 21. Rh3 {[%clk 0:01:14.2]} 21... Bg4 {[%clk 0:00:49.4]}
22. Rh2 {[%clk 0:01:10.7]} 22... f5 {[%clk 0:00:40.1]} 23. exf5 {[%clk
0:00:57.9]} 23... Bxf5 {[%clk 0:00:35.2]} 24. Rah1 {[%clk 0:00:58.5]} 24... Bg6
{[%clk 0:00:24.1]} 25. Rh3 {[%clk 0:00:55.4]} 25... Rbd8 {[%clk 0:00:16.3]} 26.
a4 {[%clk 0:00:51.6]} 26... e4 {[%clk 0:00:16.4]} 27. Qe2 {[%clk 0:00:42.7]}
27... Qc5+ {[%clk 0:00:13.8]} 28. Ke1 {[%clk 0:00:39.5]} 28... exd3 {[%clk
0:00:13.3]} 29. cxd3 {[%clk 0:00:40.3]} 29... Rfe8 {[%clk 0:00:13.3]} 30. a5
{[%clk 0:00:20.1]} 30... Rxe2+ {[%clk 0:00:12.6]} 31. Kxe2 {[%clk 0:00:21]}
31... Qe7+ {[%clk 0:00:11.1]} 32. Kd2 {[%clk 0:00:20.9]} 32... Qe4 {[%clk
0:00:10.2]} 33. Re1 {[%clk 0:00:13.7]} 33... Rxd3+ {[%clk 0:00:10.1]} 34. Kc1
{[%clk 0:00:14.3]} 34... Qd5 {[%clk 0:00:09.8]} 35. Rh4 {[%clk 0:00:07.4]} 35...
Re3 {[%clk 0:00:05.3]} 36. Rd1 {[%clk 0:00:05.1]} 36... Qe4 {[%clk 0:00:05.1]}
37. Rd2 {[%clk 0:00:03]} 37... Qb1# {[%clk 0:00:04.6]} 0-1